fUST/lending_fUST_20240818
["ID","MTS","AMOUNT","RATE_DAILY","PERIOD"]
[335221957,1723992645470,-500.0,0.00016438,2]
[335221958,1723992645479,-151.0,0.00016438,2]
[335221959,1723992645488,-151.0,0.00016438,2]
[335221960,1723992645498,-151.0,0.00016438,2]
[335221961,1723992645507,-151.0,0.00016438,2]
[335221962,1723992645516,-500.0,0.00016438,2]
[335221963,1723992645525,-151.0,0.00016438,2]
[335221964,1723992645534,-648.34,0.00016438,2]
[335221965,1723992645543,-500.0,0.00016438,2]
[335221966,1723992645553,-500.0,0.00016438,2]
[335221967,1723992645562,-151.0,0.00016438,2]
[335221968,1723992645571,-183.575114,0.00016438,2]
[335221969,1723992645580,-500.0,0.00016438,2]
[335221970,1723992645589,-500.0,0.00016438,2]
[335221971,1723992645599,-500.0,0.00016438,2]
[335221972,1723992645608,-500.0,0.00016438,2]
[335221973,1723992645617,-500.0,0.00016438,2]
[335221974,1723992645626,-500.0,0.00016438,2]
[335221975,1723992645635,-500.0,0.00016438,2]
[335221976,1723992645644,-500.0,0.00016438,2]
[335221977,1723992645653,-1016.59,0.00016438,2]
[335221978,1723992645662,-500.0,0.00016438,2]
[335221979,1723992645671,-529.26109,0.00016438,2]
[335221980,1723992645680,-529.26109,0.00016438,2]
[335221981,1723992645691,-500.0,0.00016438,2]
[335221982,1723992645701,-529.26109,0.00016438,2]
[335221983,1723992645710,-500.0,0.00016438,2]
[335221984,1723992645719,-500.0,0.00016438,2]
[335221985,1723992645729,-500.0,0.00016438,2]
[335221986,1723992645739,-500.0,0.00016438,2]
[335221987,1723992645748,-250.504287,0.00016438,2]
[335221988,1723992645757,-250.504287,0.00016438,2]
[335221989,1723992645766,-500.0,0.00016438,2]
[335221990,1723992645775,-500.0,0.00016438,2]
[335221991,1723992645784,-250.504287,0.00016438,2]
[335221992,1723992645794,-529.26109,0.00016438,2]
[335221993,1723992645803,-500.0,0.00016438,2]
[335221994,1723992645812,-529.26109,0.00016438,2]
[335221995,1723992645821,-800.02,0.00016438,2]
[335221996,1723992645830,-529.26109,0.00016438,2]
[335221997,1723992645839,-156.655626,0.00016438,2]
[335221998,1723992645849,-250.504287,0.00016438,2]
[335221999,1723992645858,-500.0,0.00016438,2]
[335222000,1723992645867,-250.504287,0.00016438,2]
[335222001,1723992645877,-250.504287,0.00016438,2]
[335222002,1723992645886,-500.0,0.00016438,2]
[335222003,1723992645994,-151.0,0.00016438,2]
[335222004,1723992646019,-151.0,0.00016438,2]
[335222005,1723992646028,-151.0,0.00016438,2]
[335222006,1723992646037,-500.0,0.00016438,2]
[335222007,1723992646047,-151.0,0.00016438,2]
[335222008,1723992646056,-500.0,0.00016438,2]
[335222009,1723992646065,-514.17707633,0.00016438,2]
[335222010,1723992646075,-151.0,0.00016438,2]
[335222011,1723992646083,-500.0,0.00016438,2]
[335222012,1723992646092,-1265.42,0.00016438,2]
[335222013,1723992646102,-249.516658,0.00016438,2]
[335222014,1723992646110,-669.87,0.00016438,2]
[335222015,1723992646120,-655.42,0.00016438,2]
[335222016,1723992646129,-500.0,0.00016438,2]
[335222017,1723992646138,-500.0,0.00016438,2]
[335222018,1723992646147,-500.0,0.00016438,2]
[335222019,1723992646157,-500.0,0.00016438,2]
[335222020,1723992646166,-500.0,0.00016438,2]
[335222021,1723992646176,-500.0,0.00016438,2]
[335222022,1723992646186,-200.0,0.00016438,2]
[335222023,1723992646195,-619.83,0.00016438,2]
[335222024,1723992646205,-1089.38,0.00016438,2]
[335222025,1723992646214,-461.50916637,0.00016438,2]
[335222026,1723992646224,-500.0,0.00016438,2]
[335222027,1723992646233,-476.72317009,0.00016438,2]
[335222029,1723992646243,-1251.45,0.00016438,2]
[335222031,1723992646252,-494.2044068,0.00016438,2]
[335222032,1723992646262,-519.3786446,0.00016438,2]
[335222034,1723992646272,-500.0,0.00016438,2]
[335222036,1723992646281,-500.0,0.00016438,2]
[335222038,1723992646291,-500.0,0.00016438,2]
[335222040,1723992646300,-500.0,0.00016438,2]
[335222042,1723992646310,-500.0,0.00016438,2]
[335222044,1723992646319,-500.0,0.00016438,2]
[335222045,1723992646328,-500.0,0.00016438,2]
[335222046,1723992646338,-500.0,0.00016438,2]
[335222047,1723992646347,-500.0,0.00016438,2]
[335222048,1723992646356,-1212.07,0.00016438,2]
[335222049,1723992646366,-500.0,0.00016438,2]
[335222051,1723992646375,-500.0,0.00016438,2]
[335222052,1723992646385,-515.17274686,0.00016438,2]
[335222053,1723992646394,-500.0,0.00016438,2]
[335222054,1723992646403,-500.0,0.00016438,2]
[335222055,1723992646412,-1060.13,0.00016438,2]
[335222056,1723992646421,-500.0,0.00016438,2]
[335222057,1723992646430,-500.0,0.00016438,2]
[335222058,1723992646439,-508.39620964,0.00016438,2]
[335222059,1723992646449,-500.0,0.00016438,2]
[335222060,1723992646458,-4325.35,0.00016438,2]
[335222061,1723992646468,-500.0,0.00016438,2]
[335222062,1723992646477,-500.0,0.00016438,2]
[335222063,1723992646487,-500.0,0.00016438,2]
[335222064,1723992646497,-454.33912668,0.00016438,2]
[335222065,1723992646505,-500.0,0.00016438,2]
[335222066,1723992646515,-500.0,0.00016438,2]
[335222067,1723992646524,-272.91192267,0.00016438,2]
[335222068,1723992646533,-505.48196032,0.00016438,2]
[335222069,1723992646542,-500.0,0.00016438,2]
[335222070,1723992646552,-500.0,0.00016438,2]
[335222071,1723992646561,-500.0,0.00016438,2]
[335222073,1723992646570,-728.22,0.00016438,2]
[335222074,1723992646579,-535.57,0.00016438,2]
[335222075,1723992646589,-502.85908508,0.00016438,2]
[335222076,1723992646598,-501.12137864,0.00016438,2]
[335222077,1723992646607,-1226.06,0.00016438,2]
[335222078,1723992646616,-500.0,0.00016438,2]
[335222079,1723992646625,-500.0,0.00016438,2]
[335222080,1723992646634,-500.0,0.00016438,2]
[335222081,1723992646643,-500.0,0.00016438,2]
[335222082,1723992646652,-507.65850958,0.00016438,2]
[335222083,1723992646664,-512.40516125,0.00016438,2]
[335222084,1723992646674,-500.0,0.00016438,2]
[335222085,1723992646682,-597.11,0.00016438,2]
[335222086,1723992646691,-500.0,0.00016438,2]
[335222087,1723992646701,-1047.1,0.00016438,2]
[335222088,1723992646710,-517.7936347,0.00016438,2]
[335222089,1723992646719,-1777.184239,0.00016438,2]
[335222090,1723992646729,-434.24993688,0.00016438,2]
[335222091,1723992646738,-1777.184239,0.00016438,2]
[335222092,1723992646748,-1777.184239,0.00016438,2]
[335222093,1723992646757,-1777.184239,0.00016438,2]
[335222094,1723992646767,-584.26,0.00016438,2]
[335222095,1723992646777,-1777.184239,0.00016438,2]
[335222096,1723992646786,-1777.184239,0.00016438,2]
[335222097,1723992646795,-1777.184239,0.00016438,2]
[335222098,1723992646805,-500.0,0.00016438,2]
[335222099,1723992646814,-1777.184239,0.00016438,2]
[335222100,1723992646823,-1777.184239,0.00016438,2]
[335222101,1723992646832,-500.0,0.00016438,2]
[335222102,1723992646841,-500.0,0.00016438,2]
[335222103,1723992646849,-1777.184239,0.00016438,2]
[335222104,1723992646859,-500.0,0.00016438,2]
[335222105,1723992646867,-500.0,0.00016438,2]
[335222106,1723992646877,-500.0,0.00016438,2]
[335222107,1723992646886,-1847.89,0.00016438,2]
[335222108,1723992646894,-500.0,0.00016438,2]
[335222109,1723992646904,-500.0,0.00016438,2]
[335222110,1723992646914,-500.0,0.00016438,2]
[335222111,1723992646926,-500.0,0.00016438,2]
[335222112,1723992646936,-500.0,0.00016438,2]
[335222113,1723992646945,-500.0,0.00016438,2]
[335222114,1723992646954,-500.0,0.00016438,2]
[335222115,1723992646963,-522.86101654,0.00016438,2]
[335222116,1723992646974,-826.89,0.00016438,2]
[335222117,1723992646983,-503.76485255,0.00016438,2]
[335222118,1723992646992,-500.0,0.00016438,2]
[335222119,1723992647003,-500.0,0.00016438,2]
[335222120,1723992647013,-500.0,0.00016438,2]
[335222121,1723992647022,-687.93,0.00016438,2]
[335222122,1723992647031,-624.13,0.00016438,2]
[335222123,1723992647042,-502.20372437,0.00016438,2]
[335222124,1723992647052,-1319.54,0.00016438,2]
[335222125,1723992647061,-500.0,0.00016438,2]
[335222126,1723992647071,-500.0,0.00016438,2]
[335222127,1723992647080,-565.81,0.00016438,2]
[335222128,1723992647089,-1328.4,0.00016438,2]
[335222129,1723992647099,-500.0,0.00016438,2]
[335222130,1723992647107,-500.0,0.00016438,2]
[335222131,1723992647117,-500.0,0.00016438,2]
[335222132,1723992647127,-626.48,0.00016438,2]
[335222133,1723992647136,-500.0,0.00016438,2]
[335222134,1723992647145,-295.153983,0.00016438,2]
[335222135,1723992647154,-151.0,0.00016438,2]
[335222136,1723992647164,-295.153983,0.00016438,2]
[335222137,1723992647174,-500.0,0.00016438,2]
[335222138,1723992647183,-500.0,0.00016438,2]
[335222139,1723992647192,-295.153983,0.00016438,2]
[335222140,1723992647201,-500.0,0.00016438,2]
[335222141,1723992647210,-151.0,0.00016438,2]
[335222142,1723992647220,-151.0,0.00016438,2]
[335222143,1723992647230,-2801.24,0.00016438,2]
[335222144,1723992647239,-903.055524,0.00016438,2]
[335222145,1723992647249,-151.0,0.00016438,2]
[335222146,1723992647258,-903.055524,0.00016438,2]
[335222147,1723992647267,-151.0,0.00016438,2]
[335222148,1723992647276,-903.055524,0.00016438,2]
[335222149,1723992647285,-903.055524,0.00016438,2]
[335222150,1723992647295,-903.055524,0.00016438,2]
[335222151,1723992647304,-500.0,0.00016438,2]
[335222152,1723992647313,-500.0,0.00016438,2]
[335222153,1723992647322,-295.153983,0.00016438,2]
[335222154,1723992647331,-151.0,0.00016438,2]
[335222155,1723992647341,-295.153983,0.00016438,2]
[335222156,1723992647350,-287.390957,0.00016438,2]
[335222157,1723992647360,-500.0,0.00016438,2]
[335222158,1723992647369,-295.153983,0.00016438,2]
[335222159,1723992647378,-903.055524,0.00016438,2]
[335222160,1723992647387,-903.055524,0.00016438,2]
[335222161,1723992647396,-903.055524,0.00016438,2]
[335222162,1723992647405,-903.055524,0.00016438,2]
[335222163,1723992647414,-500.0,0.00016438,2]
[335222164,1723992647423,-500.0,0.00016438,2]
[335222165,1723992647432,-903.055524,0.00016438,2]
[335222166,1723992647441,-500.0,0.00016438,2]
[335222167,1723992647451,-814.36,0.00016438,2]
[335222168,1723992647460,-533.31,0.00016438,2]
[335222169,1723992647469,-500.0,0.00016438,2]
[335222170,1723992647479,-500.0,0.00016438,2]
[335222171,1723992647489,-500.0,0.00016438,2]
[335222172,1723992647498,-166.30995301,0.00016438,2]
[335222173,1723992647508,-500.0,0.00016438,2]
[335222174,1723992647517,-501.7969771,0.00016438,2]
[335222175,1723992647526,-500.0,0.00016438,2]
[335222176,1723992647535,-825.99,0.00016438,2]
[335222177,1723992647544,-500.0,0.00016438,2]
[335222178,1723992647553,-500.0,0.00016438,2]
[335222179,1723992647562,-500.0,0.00016438,2]
[335222180,1723992647571,-500.0,0.00016438,2]
[335222181,1723992647580,-500.0,0.00016438,2]
[335222182,1723992647589,-515.79324204,0.00016438,2]
[335222183,1723992647598,-500.0,0.00016438,2]
[335222184,1723992647607,-500.0,0.00016438,2]
[335222185,1723992647616,-500.0,0.00016438,2]
[335222186,1723992647625,-500.0,0.00016438,2]
[335222187,1723992647634,-1135.71,0.00016438,2]
[335222188,1723992647643,-1021.12,0.00016438,2]
[335222189,1723992647652,-7348.92,0.00016438,2]
[335222190,1723992647661,-363.247095,0.00016438,2]
[335222191,1723992647671,-363.247095,0.00016438,2]
[335222192,1723992647680,-1100.84,0.00016438,2]
[335222193,1723992647689,-363.247095,0.00016438,2]
[335222194,1723992647698,-363.247095,0.00016438,2]
[335222195,1723992647707,-500.0,0.00016438,2]
[335222196,1723992647716,-363.247095,0.00016438,2]
[335222197,1723992647727,-500.0,0.00016438,2]
[335222198,1723992647737,-500.0,0.00016438,2]
[335222199,1723992647747,-363.247095,0.00016438,2]
[335222200,1723992647756,-363.247095,0.00016438,2]
[335222201,1723992647766,-803.67,0.00016438,2]
[335222202,1723992647775,-363.247095,0.00016438,2]
[335222203,1723992647784,-363.247095,0.00016438,2]
[335222204,1723992647793,-363.247095,0.00016438,2]
[335222205,1723992647804,-1019.02,0.00016438,2]
[335222206,1723992647813,-500.0,0.00016438,2]
[335222207,1723992647823,-363.00851937,0.00016438,2]
[335222208,1723992647832,-500.0,0.00016438,2]
[335222209,1723992647842,-500.0,0.00016438,2]
[335222210,1723992647851,-559.21,0.00016438,2]
[335222211,1723992647860,-593.34,0.00016438,2]
[335222212,1723992647870,-988.99,0.00016438,2]
[335222213,1723992647879,-176.54166982,0.00016438,2]
[335222214,1723992647889,-500.0,0.00016438,2]
[335222215,1723992647898,-500.0,0.00016438,2]
[335222216,1723992647908,-500.0,0.00016438,2]
[335222217,1723992647918,-500.0,0.00016438,2]
[335222218,1723992647931,-919.11,0.00016438,2]
[335222219,1723992647940,-2133.23,0.00016438,2]
[335222220,1723992647950,-500.0,0.00016438,2]
[335222221,1723992647960,-500.0,0.00016438,2]
[335222222,1723992647971,-500.0,0.00016438,2]
[335222223,1723992647980,-500.0,0.00016438,2]
[335222224,1723992647990,-500.0,0.00016438,2]
[335222225,1723992647999,-500.0,0.00016438,2]
[335222226,1723992648014,-500.0,0.00016438,2]
[335222227,1723992648023,-390.758708,0.00016438,2]
[335222228,1723992648032,-390.758708,0.00016438,2]
[335222229,1723992648042,-390.758708,0.00016438,2]
[335222230,1723992648051,-390.758708,0.00016438,2]
[335222231,1723992648060,-521.18586828,0.00016438,2]
[335222232,1723992648069,-642.76,0.00016438,2]
[335222233,1723992648080,-1180.26,0.00016438,2]
[335222234,1723992648090,-390.758708,0.00016438,2]
[335222235,1723992648099,-854.52,0.00016438,2]
[335222236,1723992648112,-500.0,0.00016438,2]
[335222237,1723992648121,-390.758708,0.00016438,2]
[335222238,1723992648130,-500.0,0.00016438,2]
[335222239,1723992648140,-390.758708,0.00016438,2]
[335222240,1723992648149,-390.758708,0.00016438,2]
[335222241,1723992648158,-390.758708,0.00016438,2]
[335222242,1723992648167,-390.758708,0.00016438,2]
[335222243,1723992648177,-500.0,0.00016438,2]
[335222244,1723992648187,-515.55398603,0.00016438,2]
[335222245,1723992648197,-651.65,0.00016438,2]
[335222246,1723992648206,-500.0,0.00016438,2]
[335222247,1723992648215,-500.0,0.00016438,2]
[335222248,1723992648226,-500.0,0.00016438,2]
[335222249,1723992648235,-500.0,0.00016438,2]
[335222250,1723992648244,-500.0,0.00016438,2]
[335222251,1723992648254,-500.0,0.00016438,2]
[335222252,1723992648263,-500.0,0.00016438,2]
[335222253,1723992648273,-672.81,0.00016438,2]
[335222254,1723992648282,-557.75,0.00016438,2]
[335222255,1723992648291,-500.0,0.00016438,2]
[335222256,1723992648300,-500.0,0.00016438,2]
[335222257,1723992648309,-500.0,0.00016438,2]
[335222258,1723992648425,-500.0,0.00016438,2]
[335222259,1723992648435,-500.0,0.00016438,2]
[335222260,1723992648444,-751.19,0.00016438,2]
[335222261,1723992648454,-2766.47,0.00016438,2]
[335222262,1723992648464,-212.899685,0.00016438,2]
[335222263,1723992648475,-954.92,0.00016438,2]
[335222264,1723992648484,-212.899685,0.00016438,2]
[335222265,1723992648493,-212.899685,0.00016438,2]
[335222266,1723992648502,-500.0,0.00016438,2]
[335222267,1723992648511,-212.899685,0.00016438,2]
[335222268,1723992648521,-798.58,0.00016438,2]
[335222269,1723992648530,-212.899685,0.00016438,2]
[335222270,1723992648540,-500.0,0.00016438,2]
[335222271,1723992648549,-212.899685,0.00016438,2]
[335222272,1723992648559,-212.899685,0.00016438,2]
[335222273,1723992648568,-212.899685,0.00016438,2]
[335222274,1723992648577,-212.899685,0.00016438,2]
[335222275,1723992648587,-212.899685,0.00016438,2]
[335222276,1723992648596,-837.87,0.00016438,2]
[335222277,1723992648606,-759.09,0.00016438,2]
[335222278,1723992648616,-500.0,0.00016438,2]
[335222279,1723992648627,-500.0,0.00016438,2]
[335222280,1723992648638,-750.43,0.00016438,2]
[335222281,1723992648648,-512.04081404,0.00016438,2]
[335222282,1723992648659,-500.0,0.00016438,2]
[335222283,1723992648668,-513.78946018,0.00016438,2]
[335222284,1723992648678,-500.0,0.00016438,2]
[335222285,1723992648687,-699.72,0.00016438,2]
[335222286,1723992648696,-500.0,0.00016438,2]
[335222287,1723992648706,-500.0,0.00016438,2]
[335222288,1723992648715,-1068.78,0.00016438,2]
[335222289,1723992648725,-1461.634586,0.00016438,2]
[335222290,1723992648735,-482.46625134,0.00016438,2]
[335222291,1723992648744,-500.0,0.00016438,2]
[335222292,1723992648754,-1461.634586,0.00016438,2]
[335222293,1723992648764,-1461.634586,0.00016438,2]
[335222294,1723992648775,-500.0,0.00016438,2]
[335222295,1723992648785,-500.0,0.00016438,2]
[335222296,1723992648794,-1461.634586,0.00016438,2]
[335222297,1723992648803,-1461.634586,0.00016438,2]
[335222298,1723992648812,-1078.4,0.00016438,2]
[335222299,1723992648821,-814.14,0.00016438,2]
[335222300,1723992648830,-542.23948546,0.00016438,2]
[335222301,1723992648839,-1461.634586,0.00016438,2]
[335222302,1723992648849,-1461.634586,0.00016438,2]
[335222303,1723992648858,-500.0,0.00016438,2]
[335222304,1723992648867,-1461.634586,0.00016438,2]
[335222305,1723992648876,-1461.634586,0.00016438,2]
[335222306,1723992648886,-757.9,0.00016438,2]
[335222307,1723992648896,-1461.634586,0.00016438,2]
[335222308,1723992648906,-151.0,0.00016438,2]
[335222309,1723992648918,-151.0,0.00016438,2]
[335222310,1723992648931,-151.0,0.00016438,2]
[335222311,1723992648941,-500.0,0.00016438,2]
[335222312,1723992648951,-152.794696,0.00016438,2]
[335222313,1723992648961,-500.0,0.00016438,2]
[335222314,1723992648971,-500.0,0.00016438,2]
[335222315,1723992648982,-500.0,0.00016438,2]
[335222316,1723992648992,-880.39,0.00016438,2]
[335222317,1723992649002,-500.0,0.00016438,2]
[335222318,1723992649012,-500.0,0.00016438,2]
[335222319,1723992649021,-854.51,0.00016438,2]
[335222320,1723992649031,-500.0,0.00016438,2]
[335222321,1723992649040,-500.0,0.00016438,2]
[335222322,1723992649049,-500.0,0.00016438,2]
[335222323,1723992649059,-500.0,0.00016438,2]
[335222324,1723992649068,-500.0,0.00016438,2]
[335222325,1723992649077,-500.0,0.00016438,2]
[335222326,1723992649088,-500.0,0.00016438,2]
[335222327,1723992649097,-500.0,0.00016438,2]
[335222328,1723992649107,-829.06,0.00016438,2]
[335222329,1723992649116,-1344.39,0.00016438,2]
[335222330,1723992649125,-500.0,0.00016438,2]
[335222331,1723992649134,-574.34,0.00016438,2]
[335222332,1723992649144,-500.0,0.00016438,2]
[335222333,1723992649153,-26552.20892968,0.0001661,2]
[335222334,1723992649163,-151.0,0.0001661,2]
[335222335,1723992649172,-151.0,0.0001661,2]
[335222336,1723992649181,-151.0,0.0001661,2]
[335222337,1723992649192,-189.611065,0.0001661,2]
[335222338,1723992649201,-189.611065,0.0001661,2]
[335222339,1723992649212,-151.0,0.0001661,2]
[335222340,1723992649225,-155.833677,0.0001661,2]
[335222341,1723992649240,-842.192617,0.0001661,2]
[335222342,1723992649250,-487.89394,0.0001661,2]
[335222343,1723992649258,-487.89394,0.0001661,2]
[335222344,1723992649267,-944.712646,0.0001661,2]
[335222345,1723992649276,-1439.93954,0.00016623,2]
[335222346,1723992649285,-1439.93954,0.00016623,2]
[335222347,1723992649294,-151.0,0.00016623,2]
[335222348,1723992649303,-475.592611,0.00016623,2]
[335222349,1723992649312,-475.592611,0.00016623,2]
[335222350,1723992649321,-151.0,0.00016623,2]
[335222351,1723992649330,-151.0,0.00016623,2]
[335222352,1723992649340,-1013.64333,0.00016632,2]
[335222353,1723992649349,-1013.64333,0.00016632,2]
[335222354,1723992649359,-529.26109,0.00016632,2]
[335222355,1723992649369,-32.69802243,0.00016632,2]
[335222357,1723992697883,166.4,5.479e-05,2]
[335222375,1723992996144,166.4,5.479e-05,2]
[335222397,1723993295795,166.4,5.479e-05,2]
[335222409,1723993596270,166.4,5.479e-05,2]
[335222417,1723993769126,-233.28,0.00010959,2]
[335222418,1723993769151,-194.4,0.00010959,2]
[335222419,1723993769177,-162.0,0.00010959,2]
[335222420,1723993769201,-810.05,0.00010959,2]
[335222454,1723993831823,-158.080029,0.00014247,2]
[335222456,1723993831834,-1023.499971,0.0001473,2]
[335222458,1723993831846,-2219.68293602,0.0001473,2]
[335222507,1723993837851,-510.0342093,0.0001473,2]
[335222508,1723993837865,-726.88,0.0001473,2]
[335222509,1723993837878,-20419.90288368,0.0001473,2]
[335222510,1723993837889,-500.0,0.00015585,2]
[335222511,1723993837900,-536.92618653,0.00015799,2]
[335222512,1723993837913,-4297.90386672,0.000158,2]
[335222513,1723993837923,-3400.62334677,0.000159,2]
[335222514,1723993837935,-2000.0,0.000159,2]
[335222515,1723993837945,-3343.83425435,0.00015984,2]
[335222516,1723993837955,-500.0,0.00015986,7]
[335222517,1723993837967,-168.33,0.00015986,7]
[335222518,1723993837979,-500.0,0.00015986,7]
[335222519,1723993837990,-500.0,0.00015986,7]
[335222520,1723993838000,-500.0,0.00015986,7]
[335222521,1723993838009,-500.0,0.00015986,7]
[335222522,1723993838019,-500.0,0.00015986,7]
[335222523,1723993838029,-500.0,0.00015986,7]
[335222524,1723993838040,-500.0,0.00015986,7]
[335222525,1723993838051,-500.0,0.00015986,7]
[335222526,1723993838063,-500.0,0.00015986,7]
[335222527,1723993838074,-500.0,0.00015986,7]
[335222528,1723993838085,-500.0,0.00015986,7]
[335222529,1723993838095,-364.3,0.00015986,7]
[335222530,1723993838104,-326.24902406,0.00015989,2]
[335222531,1723993838113,-500.0,0.00015989,2]
[335222532,1723993838122,-500.0,0.00015989,2]
[335222533,1723993838131,-566.72144255,0.00015989,2]
[335222534,1723993838144,-500.0,0.00015989,2]
[335222535,1723993838153,-500.0,0.00015989,2]
[335222536,1723993838162,-500.0,0.00015989,2]
[335222537,1723993838171,-500.0,0.00015989,2]
[335222538,1723993838181,-500.0,0.00015989,2]
[335222539,1723993838190,-296.70500978,0.00015989,2]
[335222540,1723993838200,-193994.300663,0.0001599,2]
[335222541,1723993838209,-160808.0,0.00016,2]
[335222542,1723993838218,-154.68290005,0.00016,2]
[335222543,1723993838228,-4830.38858283,0.00016028,2]
[335222544,1723993838237,-4830.38858283,0.00016106,2]
[335222545,1723993838246,-4830.38858283,0.00016183,2]
[335222546,1723993838255,-1900.89689123,0.00016238,2]
[335222547,1723993838265,-4830.38858283,0.00016261,2]
[335222548,1723993838274,-129329.533775,0.00016328,2]
[335222549,1723993838285,-4830.38858283,0.00016338,2]
[335222550,1723993838296,-40000.0,0.00016338,2]
[335222551,1723993838306,-88888.0,0.00016338,2]
[335222552,1723993838315,-5293.48179885,0.00016398,2]
[335222553,1723993838325,-151.0,0.00016398,2]
[335222554,1723993838335,-151.0,0.00016398,2]
[335222555,1723993838345,-212.899685,0.00016398,2]
[335222556,1723993838354,-212.899685,0.00016398,2]
[335222557,1723993838366,-150.112234,0.000164,2]
[335222558,1723993838376,-500.0,0.00016405,2]
[335222559,1723993838385,-1414.0,0.00016408,2]
[335222560,1723993838395,-8341.909,0.00016408,2]
[335222561,1723993838405,-396.29599239,0.00016438,2]
[335222562,1723993838414,-502.39336279,0.00016438,2]
[335222563,1723993838424,-500.0,0.00016438,2]
[335222564,1723993838433,-554.6380685,0.00016438,2]
[335222565,1723993838442,-500.0,0.00016438,2]
[335222566,1723993838452,-520.733221,0.00016438,2]
[335222567,1723993838461,-500.0,0.00016438,2]
[335222568,1723993838471,-296.38787265,0.00016438,2]
[335222569,1723993838480,-500.0,0.00016438,2]
[335222570,1723993838490,-500.0,0.00016438,2]
[335222571,1723993838499,-500.0,0.00016438,2]
[335222572,1723993838509,-500.0,0.00016438,2]
[335222573,1723993838520,-245.65795402,0.00016438,2]
[335222574,1723993838529,-500.0,0.00016438,2]
[335222575,1723993838538,-500.0,0.00016438,2]
[335222576,1723993838548,-508.84744568,0.00016438,2]
[335222577,1723993838558,-500.0,0.00016438,2]
[335222578,1723993838567,-500.0,0.00016438,2]
[335222579,1723993838577,-505.68544623,0.00016438,2]
[335222580,1723993838586,-500.0,0.00016438,2]
[335222581,1723993838596,-500.0,0.00016438,2]
[335222582,1723993838606,-502.82990042,0.00016438,2]
[335222583,1723993838617,-500.0,0.00016438,2]
[335222584,1723993838626,-512.97424818,0.00016438,2]
[335222585,1723993838636,-398.80764802,0.00016438,2]
[335222586,1723993838646,-549.04321915,0.00016438,2]
[335222587,1723993838656,-185.56289874,0.00016438,2]
[335222588,1723993838666,-500.0,0.00016438,2]
[335222589,1723993838676,-500.0,0.00016438,2]
[335222590,1723993838686,-643.29991534,0.00016438,2]
[335222591,1723993838695,-500.0,0.00016438,2]
[335222592,1723993838705,-500.0,0.00016438,2]
[335222593,1723993838719,-506.33476054,0.00016438,2]
[335222594,1723993838737,-500.0,0.00016438,2]
[335222595,1723993838753,-509.9356731,0.00016438,2]
[335222596,1723993838767,-503.19221035,0.00016438,2]
[335222597,1723993838783,-505.09928173,0.00016438,2]
[335222598,1723993838801,-509.92772392,0.00016438,2]
[335222599,1723993838818,-500.0,0.00016438,2]
[335222600,1723993838835,-553.69321237,0.00016438,2]
[335222601,1723993838850,-500.0,0.00016438,2]
[335222602,1723993838866,-276.85208661,0.00016438,2]
[335222603,1723993838882,-500.0,0.00016438,2]
[335222604,1723993838895,-500.0,0.00016438,2]
[335222605,1723993838907,-500.0,0.00016438,2]
[335222606,1723993838922,-289.56560944,0.00016438,2]